[Event "MČR v rapid šachu družstev 2019"]
[Site "Teplice, Czech Republic"]
[Date "2019.09.15"]
[Round "6.28"]
[White "Kudrlicka, Ladislav"]
[Black "Janocko, Petr"]
[Result "0-1"]
[TimeControl "15 min. + 5s"]
[WhiteElo "2033"]
[BlackElo "2071"]

1. d4 {[%clk 00:15:06]} {[%emt 00:00:02]} Nf6 {[%clk 00:15:09]} {[%emt
00:00:02]} 2. Nf3 {[%clk 00:15:10]} {[%emt 00:00:01]} c6 {[%clk 00:15:13]}
{[%emt 00:00:01]} 3. c4 {[%clk 00:15:12]} {[%emt 00:00:04]} d5 {[%clk
00:15:17]} {[%emt 00:00:01]} 4. Nc3 {[%clk 00:15:15]} g6 {[%clk 00:15:21]}
{[%emt 00:00:01]} 5. Qb3 {[%clk 00:14:30]} {[%emt 00:00:50]} Bg7 {[%clk
00:15:07]} {[%emt 00:00:19]} 6. cxd5 {[%clk 00:14:23]} {[%emt 00:00:11]} Nxd5
{[%clk 00:15:01]} {[%emt 00:00:12]} 7. Nxd5 {[%clk 00:14:11]} {[%emt 00:00:18]}
Qxd5 {[%clk 00:15:03]} {[%emt 00:00:02]} 8. Qxd5 {[%clk 00:14:14]} {[%emt
00:00:02]} cxd5 {[%clk 00:15:07]} {[%emt 00:00:01]} 9. Bf4 {[%clk 00:14:18]}
{[%emt 00:00:02]} Nc6 {[%clk 00:15:10]} {[%emt 00:00:01]} 10. e3 {[%clk
00:14:20]} {[%emt 00:00:03]} O-O {[%clk 00:15:13]} {[%emt 00:00:02]} 11. Be2
{[%clk 00:14:22]} {[%emt 00:00:03]} Bf5 {[%clk 00:14:54]} {[%emt 00:00:25]} 12.
Rc1 {[%clk 00:14:19]} {[%emt 00:00:08]} Rac8 {[%clk 00:14:57]} {[%emt
00:00:01]} 13. Kd2 {[%clk 00:13:57]} {[%emt 00:00:27]} Rfe8 {[%clk 00:14:03]}
{[%emt 00:00:59]} 14. Rc5 {[%clk 00:12:51]} {[%emt 00:01:10]} e6 {[%clk
00:13:57]} {[%emt 00:00:12]} 15. Rhc1 {[%clk 00:12:52]} {[%emt 00:00:04]} Bf8
{[%clk 00:14:00]} {[%emt 00:00:02]} 16. Rb5 {[%clk 00:12:06]} {[%emt 00:00:51]}
Na5 {[%clk 00:12:21]} {[%emt 00:01:45]} 17. a3 {[%clk 00:11:17]} {[%emt
00:00:54]} Rxc1 {[%clk 00:12:19]} {[%emt 00:00:07]} 18. Kxc1 {[%clk 00:11:20]}
{[%emt 00:00:01]} Rc8+ {[%clk 00:12:22]} {[%emt 00:00:02]} 19. Kd1 {[%clk
00:10:53]} {[%emt 00:00:31]} b6 {[%clk 00:12:18]} {[%emt 00:00:10]} 20. Ne1
{[%clk 00:10:39]} {[%emt 00:00:20]} Bb1 {[%clk 00:12:03]} {[%emt 00:00:20]} 21.
Bd3 {[%clk 00:08:06]} {[%emt 00:02:38]} Ba2 {[%clk 00:11:50]} {[%emt 00:00:17]}
22. f3 {[%clk 00:07:24]} {[%emt 00:00:48]} Be7 {[%clk 00:11:37]} {[%emt
00:00:17]} 23. h3 {[%clk 00:06:47]} {[%emt 00:00:42]} Bb3+ {[%clk 00:11:30]}
{[%emt 00:00:11]} 24. Ke2 {[%clk 00:06:38]} {[%emt 00:00:14]} Ba4 {[%clk
00:11:33]} {[%emt 00:00:03]} 25. Rxa5 {[%clk 00:05:32]} {[%emt 00:01:10]} bxa5
{[%clk 00:11:37]} {[%emt 00:00:02]} 26. e4 {[%clk 00:05:36]} {[%emt 00:00:02]}
Bb3 {[%clk 00:11:00]} {[%emt 00:00:41]} 27. Bd2 {[%clk 00:05:35]} {[%emt
00:00:05]} a4 {[%clk 00:11:00]} {[%emt 00:00:06]} 28. g3 {[%clk 00:05:22]}
{[%emt 00:00:18]} Kg7 {[%clk 00:10:54]} {[%emt 00:00:11]} 29. Ke3 {[%clk
00:05:23]} {[%emt 00:00:03]} Bd6 {[%clk 00:10:28]} {[%emt 00:00:32]} 30. Kf2
{[%clk 00:05:12]} {[%emt 00:00:16]} h5 {[%clk 00:10:01]} {[%emt 00:00:33]} 31.
h4 {[%clk 00:05:12]} {[%emt 00:00:04]} f6 {[%clk 00:09:57]} {[%emt 00:00:09]}
32. Ba6 {[%clk 00:05:06]} {[%emt 00:00:10]} Rc6 {[%clk 00:09:44]} {[%emt
00:00:19]} 33. Bb5 {[%clk 00:04:59]} {[%emt 00:00:12]} Rb6 {[%clk 00:09:44]}
{[%emt 00:00:05]} 34. Bd7 {[%clk 00:04:20]} {[%emt 00:00:44]} dxe4 {[%clk
00:09:44]} {[%emt 00:00:05]} 35. fxe4 {[%clk 00:04:22]} {[%emt 00:00:03]} Kf7
{[%clk 00:09:31]} {[%emt 00:00:19]} 36. Bc3 {[%clk 00:03:57]} {[%emt 00:00:29]}
Rb7 {[%clk 00:09:20]} {[%emt 00:00:16]} 37. Bc6 {[%clk 00:03:56]} {[%emt
00:00:05]} Rc7 {[%clk 00:09:23]} {[%emt 00:00:02]} 38. d5 {[%clk 00:03:53]}
{[%emt 00:00:08]} exd5 {[%clk 00:08:43]} {[%emt 00:00:46]} 39. exd5 {[%clk
00:03:56]} {[%emt 00:00:02]} Re7 {[%clk 00:08:46]} {[%emt 00:00:01]} 40. Nf3
{[%clk 00:03:46]} {[%emt 00:00:16]} Bd1 {[%clk 00:08:30]} {[%emt 00:00:22]} 41.
Nd4 {[%clk 00:03:36]} {[%emt 00:00:14]} Bc5 {[%clk 00:08:27]} {[%emt 00:00:08]}
42. Kf1 {[%clk 00:03:37]} {[%emt 00:00:03]} Re3 {[%clk 00:07:55]} {[%emt
00:00:38]} 43. Nb5 {[%clk 00:02:30]} {[%emt 00:01:11]} a6 {[%clk 00:06:18]}
{[%emt 00:01:43]} 44. Nc7 {[%clk 00:02:10]} {[%emt 00:00:25]} Re7 {[%clk
00:06:19]} {[%emt 00:00:04]} 45. Ne6 {[%clk 00:02:01]} {[%emt 00:00:13]} Bd6
{[%clk 00:05:02]} {[%emt 00:01:23]} 46. Nd8+ {[%clk 00:01:41]} {[%emt
00:00:24]} Kg7 {[%clk 00:04:48]} {[%emt 00:00:20]} 47. Nb7 {[%clk 00:01:36]}
{[%emt 00:00:11]} Bxg3 {[%clk 00:03:57]} {[%emt 00:00:55]} 48. d6 {[%clk
00:01:39]} {[%emt 00:00:02]} Rxb7 {[%clk 00:03:37]} {[%emt 00:00:25]} 49. Bxb7
{[%clk 00:01:40]} {[%emt 00:00:04]} Bxd6 {[%clk 00:03:40]} {[%emt 00:00:02]} 50.
Bxa6 {[%clk 00:01:27]} {[%emt 00:00:18]} Bg3 {[%clk 00:03:44]} {[%emt
00:00:01]} 51. Be1 {[%clk 00:01:31]} {[%emt 00:00:02]} Be5 {[%clk 00:03:45]}
{[%emt 00:00:04]} 52. Bc3 {[%clk 00:01:34]} Bg3 {[%clk 00:03:28]} {[%emt
00:00:22]} 53. Be1 {[%clk 00:01:37]} {[%emt 00:00:02]} Bf4 {[%clk 00:03:12]}
{[%emt 00:00:21]} 54. Bb5 {[%clk 00:01:39]} {[%emt 00:00:03]} Bc1 {[%clk
00:03:11]} {[%emt 00:00:06]} 55. Bc3 {[%clk 00:01:42]} {[%emt 00:00:03]} Kh6
{[%clk 00:03:13]} {[%emt 00:00:02]} 56. Kf2 {[%clk 00:01:43]} {[%emt 00:00:04]}
g5 {[%clk 00:03:16]} {[%emt 00:00:02]} 57. Bxf6 {[%clk 00:01:42]} {[%emt
00:00:06]} gxh4 {[%clk 00:02:30]} {[%emt 00:00:51]} 58. Kg2 {[%clk 00:01:40]}
{[%emt 00:00:08]} Bg5 {[%clk 00:02:28]} {[%emt 00:00:07]} 59. Bc3 {[%clk
00:01:11]} {[%emt 00:00:32]} Bb3 {[%clk 00:02:31]} {[%emt 00:00:03]} 60. Kh3
{[%clk 00:01:15]} {[%emt 00:00:02]} Be7 {[%clk 00:01:49]} {[%emt 00:00:46]} 61.
Bd2+ {[%clk 00:01:00]} {[%emt 00:00:19]} Kg6 {[%clk 00:01:53]} {[%emt
00:00:02]} 62. Bd3+ {[%clk 00:01:03]} {[%emt 00:00:02]} Kf7 {[%clk 00:01:53]}
{[%emt 00:00:05]} 63. Bf5 {[%clk 00:01:00]} {[%emt 00:00:08]} Be6 {[%clk
00:01:54]} {[%emt 00:00:04]} 64. Bxe6+ {[%clk 00:01:02]} {[%emt 00:00:03]} Kxe6
{[%clk 00:01:58]} {[%emt 00:00:02]} 65. Bc3 {[%clk 00:00:59]} {[%emt 00:00:08]}
Kd5 {[%clk 00:02:00]} {[%emt 00:00:02]} 66. Bg7 {[%clk 00:00:36]} {[%emt
00:00:28]} Kc4 {[%clk 00:02:03]} {[%emt 00:00:02]} 67. Be5 {[%clk 00:00:39]}
{[%emt 00:00:02]} Kb3 {[%clk 00:02:07]} {[%emt 00:00:01]} 68. Kg2 {[%clk
00:00:43]} Bg5 {[%clk 00:02:03]} {[%emt 00:00:10]} 69. Kh3 {[%clk 00:00:47]}
{[%emt 00:00:02]} Kc2 {[%clk 00:01:58]} {[%emt 00:00:10]} 70. Bg7 {[%clk
00:00:48]} {[%emt 00:00:03]} Kb3 {[%clk 00:01:39]} {[%emt 00:00:24]} 71. Be5
{[%clk 00:00:51]} {[%emt 00:00:02]} Kc4 {[%clk 00:01:41]} {[%emt 00:00:03]} 72.
Bg7 {[%clk 00:00:54]} {[%emt 00:00:02]} Kd5 {[%clk 00:01:45]} {[%emt 00:00:01]}
73. Bh8 {[%clk 00:00:57]} {[%emt 00:00:02]} Ke6 {[%clk 00:01:47]} {[%emt
00:00:03]} 74. Bc3 {[%clk 00:01:00]} {[%emt 00:00:02]} Bf6 {[%clk 00:01:37]}
{[%emt 00:00:15]} 75. Kh2 {[%clk 00:00:55]} {[%emt 00:00:09]} Bxc3 {[%clk
00:01:40]} {[%emt 00:00:03]} 76. bxc3 {[%clk 00:00:59]} {[%emt 00:00:01]} Kd5
{[%clk 00:01:44]} {[%emt 00:00:01]} 77. Kh3 {[%clk 00:01:03]} {[%emt 00:00:02]}
Kc4 {[%clk 00:01:48]} 78. Kxh4 {[%clk 00:01:07]} Kxc3 {[%clk 00:01:52]} {[%emt
00:00:01]} 79. Kxh5 {[%clk 00:01:11]} {[%emt 00:00:01]} Kb3 {[%clk 00:01:56]}
80. Kg4 {[%clk 00:01:14]} {[%emt 00:00:02]} Kxa3 {[%clk 00:02:00]} {[%emt
00:00:01]} 0-1

[Event "MČR v rapid šachu družstev 2019"]
[Site "Teplice, Czech Republic"]
[Date "2019.09.15"]
[Round "7.1"]
[White "Kourousis, Epaminondas"]
[Black "Stocek, Jiri"]
[Result "0-1"]
[TimeControl "15 min. + 5s"]
[WhiteElo "2388"]
[BlackElo "2507"]

1. Nf3 {[%clk 00:15:07]} {[%emt 00:00:02]} Nf6 {[%clk 00:15:03]} {[%emt
00:00:07]} 2. g3 {[%clk 00:15:05]} {[%emt 00:00:07]} d5 {[%clk 00:15:06]}
{[%emt 00:00:03]} 3. Bg2 {[%clk 00:14:59]} {[%emt 00:00:12]} Bf5 {[%clk
00:15:05]} {[%emt 00:00:05]} 4. c4 {[%clk 00:14:38]} {[%emt 00:00:26]} c6
{[%clk 00:14:20]} {[%emt 00:00:50]} 5. Qb3 {[%clk 00:14:23]} {[%emt 00:00:21]}
Qb6 {[%clk 00:14:21]} {[%emt 00:00:03]} 6. cxd5 {[%clk 00:14:14]} {[%emt
00:00:14]} Qxb3 {[%clk 00:14:22]} {[%emt 00:00:04]} 7. axb3 {[%clk 00:14:18]}
{[%emt 00:00:01]} Nxd5 {[%clk 00:14:25]} {[%emt 00:00:02]} 8. d3 {[%clk
00:12:57]} {[%emt 00:01:27]} Nb4 {[%clk 00:14:19]} {[%emt 00:00:10]} 9. O-O
{[%clk 00:12:52]} {[%emt 00:00:09]} Nd7 {[%clk 00:14:01]} {[%emt 00:00:23]} 10.
Nbd2 {[%clk 00:12:44]} {[%emt 00:00:14]} e5 {[%clk 00:13:34]} {[%emt 00:00:32]}
11. Nc4 {[%clk 00:12:36]} {[%emt 00:00:12]} f6 {[%clk 00:13:36]} {[%emt
00:00:04]} 12. Be3 {[%clk 00:11:24]} {[%emt 00:01:18]} a6 {[%clk 00:13:04]}
{[%emt 00:00:37]} 13. Rfc1 {[%clk 00:11:08]} {[%emt 00:00:20]} O-O-O {[%clk
00:12:41]} {[%emt 00:00:28]} 14. Na5 {[%clk 00:10:28]} {[%emt 00:00:46]} Be6
{[%clk 00:12:06]} {[%emt 00:00:39]} 15. Nd2 {[%clk 00:09:18]} {[%emt 00:01:15]}
Kb8 {[%clk 00:11:56]} {[%emt 00:00:14]} 16. Ndc4 {[%clk 00:09:03]} {[%emt
00:00:21]} Rc8 {[%clk 00:10:49]} {[%emt 00:01:12]} 17. Bd2 {[%clk 00:06:57]}
{[%emt 00:02:12]} Be7 {[%clk 00:10:12]} {[%emt 00:00:42]} 18. Nxb7 {[%clk
00:05:31]} {[%emt 00:01:32]} Kxb7 {[%clk 00:10:11]} {[%emt 00:00:05]} 19. Na5+
{[%clk 00:05:19]} {[%emt 00:00:17]} Kb6 {[%clk 00:10:02]} {[%emt 00:00:14]} 20.
Bxb4 {[%clk 00:03:22]} {[%emt 00:02:02]} Bxb4 {[%clk 00:10:05]} {[%emt
00:00:02]} 21. Nxc6 {[%clk 00:03:23]} {[%emt 00:00:04]} Bd6 {[%clk 00:09:59]}
{[%emt 00:00:10]} 22. b4 {[%clk 00:00:54]} {[%emt 00:02:35]} Nb8 {[%clk
00:09:51]} {[%emt 00:00:13]} 23. Na5 {[%clk 00:00:20]} {[%emt 00:00:39]} Bxb4
{[%clk 00:09:41]} {[%emt 00:00:14]} 0-1

[Event "MČR v rapid šachu družstev 2019"]
[Site "Teplice, Czech Republic"]
[Date "2019.09.15"]
[Round "7.2"]
[White "Kociscak, Jiri"]
[Black "Burdalev, Kirill"]
[Result "1/2-1/2"]
[TimeControl "15 min. + 5s"]
[WhiteElo "2410"]
[BlackElo "2336"]

1. d4 {[%clk 00:15:08]} {[%emt 00:00:02]} d5 {[%clk 00:15:08]} {[%emt
00:00:02]} 2. c4 {[%clk 00:15:10]} {[%emt 00:00:03]} c6 {[%clk 00:15:12]}
{[%emt 00:00:01]} 3. Nc3 {[%clk 00:15:13]} {[%emt 00:00:02]} Nf6 {[%clk
00:15:16]} {[%emt 00:00:02]} 4. e3 {[%clk 00:15:16]} {[%emt 00:00:01]} a6
{[%clk 00:15:20]} {[%emt 00:00:02]} 5. Nf3 {[%clk 00:15:20]} {[%emt 00:00:01]}
Bf5 {[%clk 00:15:24]} 6. Qb3 {[%clk 00:13:50]} {[%emt 00:01:35]} Ra7 {[%clk
00:15:27]} {[%emt 00:00:02]} 7. a4 {[%clk 00:13:53]} {[%emt 00:00:02]} e6
{[%clk 00:15:28]} {[%emt 00:00:05]} 8. a5 {[%clk 00:13:39]} {[%emt 00:00:18]}
Nbd7 {[%clk 00:15:27]} {[%emt 00:00:05]} 9. Be2 {[%clk 00:13:43]} {[%emt
00:00:02]} h6 {[%clk 00:15:28]} {[%emt 00:00:05]} 10. O-O {[%clk 00:13:45]}
{[%emt 00:00:03]} Bd6 {[%clk 00:15:30]} {[%emt 00:00:02]} 11. Bd2 {[%clk
00:13:22]} {[%emt 00:00:28]} O-O {[%clk 00:14:06]} {[%emt 00:01:30]} 12. Na4
{[%clk 00:13:12]} {[%emt 00:00:14]} Bc7 {[%clk 00:14:05]} {[%emt 00:00:06]} 13.
Bb4 {[%clk 00:12:37]} {[%emt 00:00:40]} Re8 {[%clk 00:14:09]} 14. Nc5 {[%clk
00:12:40]} {[%emt 00:00:03]} Ne4 {[%clk 00:13:29]} {[%emt 00:00:46]} 15. Nxd7
{[%clk 00:12:30]} {[%emt 00:00:15]} Qxd7 {[%clk 00:13:32]} {[%emt 00:00:02]} 16.
Ne5 {[%clk 00:12:34]} {[%emt 00:00:01]} Qc8 {[%clk 00:12:46]} {[%emt 00:00:50]}
17. f3 {[%clk 00:12:32]} {[%emt 00:00:08]} Nf6 {[%clk 00:12:46]} {[%emt
00:00:06]} 18. Bd3 {[%clk 00:11:41]} {[%emt 00:00:55]} Bxd3 {[%clk 00:12:45]}
{[%emt 00:00:06]} 19. Qxd3 {[%clk 00:11:40]} {[%emt 00:00:05]} Qb8 {[%clk
00:12:44]} {[%emt 00:00:06]} 20. Bc3 {[%clk 00:11:22]} {[%emt 00:00:24]} Ra8
{[%clk 00:12:36]} {[%emt 00:00:13]} 21. e4 {[%clk 00:11:25]} {[%emt 00:00:03]}
c5 {[%clk 00:12:25]} {[%emt 00:00:16]} 22. exd5 {[%clk 00:11:00]} {[%emt
00:00:30]} cxd4 {[%clk 00:12:14]} {[%emt 00:00:16]} 23. Qxd4 {[%clk 00:11:03]}
{[%emt 00:00:02]} Bxe5 {[%clk 00:10:39]} {[%emt 00:01:40]} 24. Qxe5 {[%clk
00:11:06]} {[%emt 00:00:02]} Qxe5 {[%clk 00:10:40]} {[%emt 00:00:05]} 25. Bxe5
{[%clk 00:11:10]} {[%emt 00:00:01]} exd5 {[%clk 00:10:41]} {[%emt 00:00:04]} 26.
Bxf6 {[%clk 00:10:23]} {[%emt 00:00:52]} gxf6 {[%clk 00:10:45]} 27. cxd5 {[%clk
00:10:27]} {[%emt 00:00:01]} Rad8 {[%clk 00:10:49]} 28. Rfd1 {[%clk 00:09:04]}
{[%emt 00:01:29]} Re5 {[%clk 00:10:53]} {[%emt 00:00:01]} 29. d6 {[%clk
00:08:53]} {[%emt 00:00:16]} Re6 {[%clk 00:09:51]} {[%emt 00:01:07]} 30. Ra4
{[%clk 00:08:25]} {[%emt 00:00:32]} Rexd6 {[%clk 00:09:53]} {[%emt 00:00:04]}
31. Rxd6 {[%clk 00:08:24]} {[%emt 00:00:06]} Rxd6 {[%clk 00:09:57]} {[%emt
00:00:01]} 32. Rg4+ {[%clk 00:08:28]} {[%emt 00:00:01]} Kf8 {[%clk 00:09:59]}
{[%emt 00:00:03]} 33. b4 {[%clk 00:08:32]} {[%emt 00:00:01]} Rd2 {[%clk
00:09:27]} {[%emt 00:00:37]} 34. h3 {[%clk 00:08:11]} {[%emt 00:00:25]} f5
{[%clk 00:08:46]} {[%emt 00:00:46]} 35. Rf4 {[%clk 00:08:12]} {[%emt 00:00:05]}
Rb2 {[%clk 00:08:36]} {[%emt 00:00:15]} 36. Kh2 {[%clk 00:06:58]} {[%emt
00:01:19]} Kg7 {[%clk 00:08:38]} {[%emt 00:00:03]} 37. Kg3 {[%clk 00:06:47]}
{[%emt 00:00:17]} Kg6 {[%clk 00:08:20]} {[%emt 00:00:22]} 38. Rd4 {[%clk
00:06:46]} {[%emt 00:00:06]} f6 {[%clk 00:08:10]} {[%emt 00:00:16]} 39. Kf4
{[%clk 00:06:25]} {[%emt 00:00:26]} Rxg2 {[%clk 00:05:38]} {[%emt 00:02:37]} 40.
Rd7 {[%clk 00:06:28]} {[%emt 00:00:01]} Rh2 {[%clk 00:05:42]} 41. Kg3 {[%clk
00:06:07]} {[%emt 00:00:26]} Rh1 {[%clk 00:05:32]} {[%emt 00:00:15]} 42. Rxb7
{[%clk 00:05:51]} {[%emt 00:00:22]} f4+ {[%clk 00:05:35]} {[%emt 00:00:01]} 43.
Kxf4 {[%clk 00:03:31]} {[%emt 00:02:24]} Rxh3 {[%clk 00:05:39]} {[%emt
00:00:01]} 44. Ke4 {[%clk 00:03:36]} Rh1 {[%clk 00:05:13]} {[%emt 00:00:31]} 45.
Rb6 {[%clk 00:03:18]} {[%emt 00:00:23]} Rb1 {[%clk 00:05:16]} {[%emt 00:00:01]}
46. Kd3 {[%clk 00:03:22]} h5 {[%clk 00:04:48]} {[%emt 00:00:34]} 47. Kc2 {[%clk
00:03:25]} {[%emt 00:00:02]} Rf1 {[%clk 00:03:34]} {[%emt 00:01:19]} 48. Rxa6
{[%clk 00:03:29]} {[%emt 00:00:02]} h4 {[%clk 00:03:20]} {[%emt 00:00:18]} 49.
Ra8 {[%clk 00:03:23]} {[%emt 00:00:10]} Kg7 {[%clk 00:03:12]} {[%emt 00:00:13]}
50. Ra7+ {[%clk 00:02:05]} {[%emt 00:01:23]} Kg6 {[%clk 00:03:14]} {[%emt
00:00:03]} 51. Ra8 {[%clk 00:02:09]} {[%emt 00:00:01]} Kg7 {[%clk 00:03:19]} 52.
Re8 {[%clk 00:02:13]} Rf2+ {[%clk 00:02:26]} {[%emt 00:00:58]} 53. Kd3 {[%clk
00:01:56]} {[%emt 00:00:22]} h3 {[%clk 00:01:37]} {[%emt 00:00:54]} 54. Re1
{[%clk 00:01:26]} {[%emt 00:00:35]} Rxf3+ {[%clk 00:01:03]} {[%emt 00:00:41]}
55. Kc4 {[%clk 00:01:30]} Ra3 {[%clk 00:00:38]} {[%emt 00:00:29]} 56. Kb5
{[%clk 00:01:33]} {[%emt 00:00:02]} f5 {[%clk 00:00:08]} {[%emt 00:00:36]} 57.
a6 {[%clk 00:01:37]} f4 {[%clk 00:00:09]} {[%emt 00:00:04]} 58. Rh1 {[%clk
00:01:41]} Kf6 {[%clk 00:00:07]} {[%emt 00:00:07]} 59. Kb6 {[%clk 00:01:44]}
{[%emt 00:00:02]} Kg5 {[%clk 00:00:08]} {[%emt 00:00:04]} 60. a7 {[%clk
00:01:40]} {[%emt 00:00:08]} Kg4 {[%clk 00:00:11]} {[%emt 00:00:02]} 61. Kb7
{[%clk 00:01:24]} {[%emt 00:00:21]} Kg3 {[%clk 00:00:07]} {[%emt 00:00:09]} 62.
a8=Q {[%clk 00:01:17]} {[%emt 00:00:12]} Rxa8 {[%clk 00:00:11]} {[%emt
00:00:01]} 63. Kxa8 {[%clk 00:01:21]} {[%emt 00:00:01]} f3 {[%clk 00:00:10]}
{[%emt 00:00:07]} 64. b5 {[%clk 00:01:24]} {[%emt 00:00:01]} Kg2 {[%clk
00:00:09]} {[%emt 00:00:06]} 65. Rb1 {[%clk 00:01:17]} {[%emt 00:00:11]} f2
{[%clk 00:00:11]} {[%emt 00:00:04]} 66. b6 {[%clk 00:01:20]} {[%emt 00:00:02]}
f1=Q {[%clk 00:00:12]} {[%emt 00:00:03]} 67. Rxf1 {[%clk 00:01:23]} {[%emt
00:00:02]} Kxf1 {[%clk 00:00:16]} {[%emt 00:00:01]} 68. b7 {[%clk 00:01:27]} h2
{[%clk 00:00:16]} {[%emt 00:00:05]} 69. b8=Q {[%clk 00:01:29]} {[%emt
00:00:03]} h1=Q+ {[%clk 00:00:17]} {[%emt 00:00:05]} 70. Qb7 {[%clk 00:01:33]}
{[%emt 00:00:01]} 1/2-1/2

[Event "MČR v rapid šachu družstev 2019"]
[Site "Teplice, Czech Republic"]
[Date "2019.09.15"]
[Round "7.3"]
[White "Pribyl, Josef"]
[Black "Polak, Tomas"]
[Result "0-1"]
[TimeControl "15 min. + 5s"]
[WhiteElo "2285"]
[BlackElo "2515"]

1. d4 {[%clk 00:15:09]} {[%emt 00:03:27]} Nf6 {[%clk 00:15:08]} {[%emt
00:00:03]} 2. Nf3 {[%clk 00:15:10]} {[%emt 00:00:04]} b6 {[%clk 00:15:10]}
{[%emt 00:00:04]} 3. g3 {[%clk 00:15:11]} {[%emt 00:00:03]} Bb7 {[%clk
00:15:14]} {[%emt 00:00:01]} 4. Bg2 {[%clk 00:15:15]} e6 {[%clk 00:15:14]}
{[%emt 00:00:06]} 5. O-O {[%clk 00:15:16]} {[%emt 00:00:03]} Be7 {[%clk
00:15:13]} {[%emt 00:00:07]} 6. c4 {[%clk 00:15:20]} {[%emt 00:00:01]} O-O
{[%clk 00:15:16]} {[%emt 00:00:02]} 7. Nc3 {[%clk 00:15:24]} d5 {[%clk
00:15:16]} {[%emt 00:00:06]} 8. Ne5 {[%clk 00:15:26]} {[%emt 00:00:03]} Qc8
{[%clk 00:15:18]} {[%emt 00:00:03]} 9. Qa4 {[%clk 00:15:09]} {[%emt 00:00:21]}
dxc4 {[%clk 00:15:06]} {[%emt 00:00:17]} 10. Bxb7 {[%clk 00:14:56]} {[%emt
00:00:18]} Qxb7 {[%clk 00:15:10]} {[%emt 00:00:01]} 11. Qxc4 {[%clk 00:14:59]}
{[%emt 00:00:01]} Rc8 {[%clk 00:15:03]} {[%emt 00:00:12]} 12. Bg5 {[%clk
00:14:17]} {[%emt 00:00:46]} c5 {[%clk 00:14:39]} {[%emt 00:00:29]} 13. Rad1
{[%clk 00:14:10]} {[%emt 00:00:12]} h6 {[%clk 00:13:59]} {[%emt 00:00:45]} 14.
Be3 {[%clk 00:13:57]} {[%emt 00:00:18]} Nd5 {[%clk 00:13:36]} {[%emt 00:00:29]}
15. Nxd5 {[%clk 00:13:40]} {[%emt 00:00:21]} exd5 {[%clk 00:13:39]} {[%emt
00:00:03]} 16. Qd3 {[%clk 00:13:36]} {[%emt 00:00:09]} c4 {[%clk 00:13:16]}
{[%emt 00:00:28]} 17. Qf5 {[%clk 00:13:39]} {[%emt 00:00:02]} Rf8 {[%clk
00:12:53]} {[%emt 00:00:28]} 18. b3 {[%clk 00:13:06]} {[%emt 00:00:37]} b5
{[%clk 00:12:03]} {[%emt 00:00:56]} 19. bxc4 {[%clk 00:12:56]} {[%emt
00:00:15]} bxc4 {[%clk 00:12:06]} {[%emt 00:00:02]} 20. Rb1 {[%clk 00:12:48]}
{[%emt 00:00:12]} Qc8 {[%clk 00:11:05]} {[%emt 00:01:06]} 21. Qxc8 {[%clk
00:12:37]} {[%emt 00:00:16]} Rxc8 {[%clk 00:11:09]} {[%emt 00:00:02]} 22. Rb7
{[%clk 00:12:40]} {[%emt 00:00:02]} Kf8 {[%clk 00:10:07]} {[%emt 00:01:07]} 23.
Rfb1 {[%clk 00:12:36]} {[%emt 00:00:09]} Na6 {[%clk 00:10:07]} {[%emt
00:00:06]} 24. Rd7 {[%clk 00:11:46]} {[%emt 00:00:55]} Rd8 {[%clk 00:08:48]}
{[%emt 00:01:25]} 25. Rbb7 {[%clk 00:10:59]} {[%emt 00:00:52]} Rxd7 {[%clk
00:08:50]} {[%emt 00:00:03]} 26. Rxd7 {[%clk 00:10:42]} {[%emt 00:00:22]} Nb4
{[%clk 00:08:35]} {[%emt 00:00:20]} 27. a3 {[%clk 00:09:58]} {[%emt 00:00:49]}
Nc2 {[%clk 00:08:34]} {[%emt 00:00:07]} 28. Rxd5 {[%clk 00:09:50]} {[%emt
00:00:12]} Nxe3 {[%clk 00:07:20]} {[%emt 00:01:19]} 29. fxe3 {[%clk 00:09:53]}
{[%emt 00:00:02]} c3 {[%clk 00:07:24]} {[%emt 00:00:02]} 30. Rd7 {[%clk
00:07:44]} {[%emt 00:02:13]} Rc8 {[%clk 00:07:07]} {[%emt 00:00:22]} 31. Nd3
{[%clk 00:07:03]} {[%emt 00:00:46]} c2 {[%clk 00:07:04]} {[%emt 00:00:09]} 32.
Rxa7 {[%clk 00:06:57]} {[%emt 00:00:12]} Bg5 {[%clk 00:05:45]} {[%emt
00:01:23]} 33. Kf2 {[%clk 00:06:37]} {[%emt 00:00:24]} Rc3 {[%clk 00:05:35]}
{[%emt 00:00:15]} 34. Ra8+ {[%clk 00:05:03]} {[%emt 00:01:40]} Ke7 {[%clk
00:05:38]} {[%emt 00:00:02]} 35. Ra7+ {[%clk 00:05:07]} {[%emt 00:00:01]} Kd8
{[%clk 00:05:41]} {[%emt 00:00:02]} 36. Ra5 {[%clk 00:04:28]} {[%emt 00:00:44]}
Bxe3+ {[%clk 00:03:59]} {[%emt 00:01:47]} 37. Kg2 {[%clk 00:04:01]} {[%emt
00:00:32]} Rxd3 {[%clk 00:03:51]} {[%emt 00:00:14]} 38. Rc5 {[%clk 00:04:05]}
{[%emt 00:00:01]} Rd2 {[%clk 00:03:34]} {[%emt 00:00:22]} 39. Kf3 {[%clk
00:04:01]} {[%emt 00:00:08]} Bxd4 {[%clk 00:03:36]} {[%emt 00:00:03]} 40. Rc4
{[%clk 00:03:58]} {[%emt 00:00:08]} Bb2 {[%clk 00:03:39]} {[%emt 00:00:02]} 0-1